Workbook

Sheet Per Diem Calculator
A1: The per diem rate must be prorated for the date of departure and date of return at 75% of the per diem rate.
A2: Traveler Name:
A4: Description of Trip:
A6: Daily per diem rate(see tabs below to locate and enter rate here): | F6: 60 | G6: Enter your Daily rate on Cell F6
A8: Destination:
B9: Monday | C9: Tuesday | D9: Wednesday | E9: Thursday | F9: Friday | G9: Saturday | H9: Sunday | I9: Total per week
A10: Date
A11: Breakfast 20% | B11: =F6*0.2 -> 12 | C11: =F6*0.2 -> 12 | D11: =F6*0.2 -> 12 | E11: =F6*0.2 -> 12 | F11: =F6*0.2 -> 12 | G11: =F6*0.2 -> 12 | H11: =F6*0.2 -> 12
A12: Lunch 20% | B12: =F6*0.2 -> 12 | C12: =F6*0.2 -> 12 | D12: =F6*0.2 -> 12 | E12: =F6*0.2 -> 12 | F12: =F6*0.2 -> 12 | G12: =F6*0.2 -> 12 | H12: =F6*0.2 -> 12
A13: Dinner 60% | B13: =F6*0.6 -> 36 | C13: =F6*0.6 -> 36 | D13: =F6*0.6 -> 36 | E13: =F6*0.6 -> 36 | F13: =F6*0.6 -> 36 | G13: =F6*0.6 -> 36 | H13: =F6*0.6 -> 36
A14: Total Daily total = | B14: =SUM(B11:B13) -> 60 | C14: =SUM(C11:C13) -> 60 | D14: =SUM(D11:D13) -> 60 | E14: =SUM(E11:E13) -> 60 | F14: =SUM(F11:F13) -> 60 | G14: 60 | H14: 60 | I14: =SUM(B14:H14) -> 420
B16: Monday | C16: Tuesday | D16: Wednesday | E16: Thursday | F16: Friday | G16: Saturday | H16: Sunday
A17: Date
A18: Breakfast 20% | B18: =F6*0.2 -> 12 | C18: =F6*0.2 -> 12 | D18: =SUM(F6*0.2) -> 12 | E18: =F6*0.2 -> 12 | F18: =F6*0.2 -> 12 | G18: =F6*0.2 -> 12 | H18: =F6*0.2 -> 12
A19: Lunch 20% | B19: =F6*0.2 -> 12 | C19: =F6*0.2 -> 12 | D19: =SUM(F6*0.2) -> 12 | E19: =F6*0.2 -> 12 | F19: =F6*0.2 -> 12 | G19: =F6*0.2 -> 12 | H19: =F6*0.2 -> 12
A20: Dinner 60% | B20: =F6*0.6 -> 36 | C20: =F6*0.6 -> 36 | D20: =F6*0.6 -> 36 | E20: =F6*0.6 -> 36 | F20: =F6*0.6 -> 36 | G20: =F6*0.6 -> 36 | H20: =F6*0.6 -> 36
A21: Total Daily total = | B21: =SUM(B18:B20) -> 60 | C21: =SUM(C18:C20) -> 60 | D21: 60 | E21: 60 | F21: 60 | G21: 60 | H21: 60 | I21: =SUM(B21:H21) -> 420
A23: Total Requested: | B23: =SUM(I14,I21) -> 840
A25: IMPORTANT INFORMATION:
A27: Travelers have two meal reimbursement options. You must select one option for your entire trip:
A28: 1) Rutgers per diem rate of $50 for all cities (domestic or foreign):
A29: $10 breakfast, $10 lunch, $30 dinner
A30: 2) IRS per diem rate by city (see Procurement Services website for rates):
A31: 20% breakfast, 20% lunch, 60% dinner
A33: *Meals for travel days (depart/return dates) are reimbursable at 75% of the per diem amount.
A35: Travelers cannot request reimbursement for any meal that is included in some aspect of the travel, including but not limited to meals provided at a conference or on a plane. Per diem must be prorated for any meal provided by any source. Breakfast or lunch reduces the per diem by 20% and dinner reduces it by 60%. The event agenda/program, indicating any supplied meals, must be submitted.
A36: meals provided at a conference or on a plane. Per diem must be prorated for any meal
A37: Meal reimbursement is provided when a traveler is actively in travel status. When a traveler is not in travel status, meals are considered a personal expense and are not reimbursable. Travel status is defined as traveling:
A38: considered a personal expense and are not reimbursable. Travel status is defined as traveling:
A39: -for a period of at least 12 consecutive hours, or
A40: -at least 100 miles from your Rutgers departure point
A42: Please visit the Procurement Services website for additional travel/reimbursement information.

Sheet IRS US Cities
B1: FY2023 Per Diem Rates - Effective October 1, 2022
B3: Please Note: Rates provided are GSA rates minus Incidentals which Rutgers allows expensed at actuals
B4: Incidentals include tolls, parking, gratuities
A6: ID | B6: STATE | C6: DESTINATION | D6: COUNTY/LOCATION DEFINED | E6: SEASON BEGIN | F6: SEASON END | G6: FY23 Lodging Rate | H6: FY23 M&IE | I6: FY23 Meals
C7: Standard CONUS rate applies to all counties not specifically listed. Cities not listed may be located in a listed county. | G7: 98 | H7: 59 | I7: =H7-5 -> 54
A8: 1 | B8: AL | C8: Birmingham | D8: Jefferson | G8: 113 | H8: 69 | I8: =H8-5 -> 64
A9: 2 | B9: AL | C9: Gulf Shores | D9: Baldwin | E9: October 1 | F9: February 28 | G9: 137 | H9: 69 | I9: 64
A10: 2 | B10: AL | C10: Gulf Shores | D10: Baldwin | E10: March 1 | F10: May 31 | G10: 161 | H10: 69 | I10: 64
A11: 2 | B11: AL | C11: Gulf Shores | D11: Baldwin | E11: June 1 | F11: July 31 | G11: 237 | H11: 69 | I11: 64
A12: 2 | B12: AL | C12: Gulf Shores | D12: Baldwin | E12: August 1 | F12: September 30 | G12: 137 | H12: 69 | I12: 64
A13: 460 | B13: AL | C13: Mobile | D13: Mobile | E13: October 1 | F13: December 31 | G13: 100 | H13: 59 | I13: 54
A14: 460 | B14: AL | C14: Mobile | D14: Mobile | E14: January 1 | F14: March 31 | G14: 114 | H14: 59 | I14: 54
A15: 460 | B15: AL | C15: Mobile | D15: Mobile | E15: April 1 | F15: September 30 | G15: 100 | H15: 59 | I15: 54
A16: 6 | B16: AR | C16: Hot Springs | D16: Garland | G16: 103 | H16: 64 | I16: 59
A17: 9 | B17: AZ | C17: Grand Canyon / Flagstaff | D17: Coconino / Yavapai less the city of Sedona | E17: October 1 | F17: October 31 | G17: 138 | H17: 74 | I17: 69
A18: 9 | B18: AZ | C18: Grand Canyon / Flagstaff | D18: Coconino / Yavapai less the city of Sedona | E18: November 1 | F18: February 28 | G18: 103 | H18: 74 | I18: 69
A19: 9 | B19: AZ | C19: Grand Canyon / Flagstaff | D19: Coconino / Yavapai less the city of Sedona | E19: March 1 | F19: April 30 | G19: 127 | H19: 74 | I19: 69
A20: 9 | B20: AZ | C20: Grand Canyon / Flagstaff | D20: Coconino / Yavapai less the city of Sedona | E20: May 1 | F20: September 30 | G20: 138 | H20: 74 | I20: 69
A21: 8 | B21: AZ | C21: Kayenta | D21: Navajo | E21: October 1 | F21: October 31 | G21: 134 | H21: 64 | I21: 59
A22: 8 | B22: AZ | C22: Kayenta | D22: Navajo | E22: November 1 | F22: February 28 | G22: 115 | H22: 64 | I22: 59
A23: 8 | B23: AZ | C23: Kayenta | D23: Navajo | E23: March 1 | F23: September 30 | G23: 134 | H23: 64 | I23: 59
A24: 10 | B24: AZ | C24: Phoenix / Scottsdale | D24: Maricopa | E24: October 1 | F24: January 31 | G24: 151 | H24: 69 | I24: 64
A25: 10 | B25: AZ | C25: Phoenix / Scottsdale | D25: Maricopa | E25: February 1 | F25: March 31 | G25: 205 | H25: 69 | I25: 64
A26: 10 | B26: AZ | C26: Phoenix / Scottsdale | D26: Maricopa | E26: April 1 | F26: May 31 | G26: 151 | H26: 69 | I26: 64
A27: 10 | B27: AZ | C27: Phoenix / Scottsdale | D27: Maricopa | E27: June 1 | F27: August 31 | G27: 103 | H27: 69 | I27: 64
A28: 10 | B28: AZ | C28: Phoenix / Scottsdale | D28: Maricopa | E28: September 1 | F28: September 30 | G28: 151 | H28: 69 | I28: 64
A29: 11 | B29: AZ | C29: Sedona | D29: City Limits of Sedona | E29: October 1 | F29: December 31 | G29: 247 | H29: 79 | I29: 74
A30: 11 | B30: AZ | C30: Sedona | D30: City Limits of Sedona | E30: January 1 | F30: February 28 | G30: 198 | H30: 79 | I30: 74
A31: 11 | B31: AZ | C31: Sedona | D31: City Limits of Sedona | E31: March 1 | F31: April 30 | G31: 310 | H31: 79 | I31: 74
A32: 11 | B32: AZ | C32: Sedona | D32: City Limits of Sedona | E32: May 1 | F32: August 31 | G32: 215 | H32: 79 | I32: 74
A33: 11 | B33: AZ | C33: Sedona | D33: City Limits of Sedona | E33: September 1 | F33: September 30 | G33: 247 | H33: 79 | I33: 74
A34: 12 | B34: AZ | C34: Tucson | D34: Pima | E34: October 1 | F34: December 31 | G34: 104 | H34: 64 | I34: 59
A35: 12 | B35: AZ | C35: Tucson | D35: Pima | E35: January 1 | F35: March 31 | G35: 145 | H35: 64 | I35: 59
A36: 12 | B36: AZ | C36: Tucson | D36: Pima | E36: April 1 | F36: September 30 | G36: 104 | H36: 64 | I36: 59
A37: 14 | B37: CA | C37: Antioch / Brentwood / Concord | D37: Contra Costa | G37: 165 | H37: 74 | I37: 69
A38: 481 | B38: CA | C38: Bakersfield / Ridgecrest | D38: Kern | G38: 123 | H38: 64 | I38: 59
A39: 16 | B39: CA | C39: Barstow / Ontario / Victorville | D39: San Bernardino | G39: 120 | H39: 64 | I39: 59
A40: 20 | B40: CA | C40: Death Valley | D40: Inyo / NAWS China Lake | E40: October 1 | F40: October 31 | G40: 130 | H40: 69 | I40: 64
A41: 20 | B41: CA | C41: Death Valley | D41: Inyo / NAWS China Lake | E41: November 1 | F41: January 31 | G41: 116 | H41: 69 | I41: 64
A42: 20 | B42: CA | C42: Death Valley | D42: Inyo / NAWS China Lake | E42: February 1 | F42: September 30 | G42: 130 | H42: 69 | I42: 64
A43: 461 | B43: CA | C43: Eureka / Arcata / McKinleyville | D43: Humboldt | E43: October 1 | F43: May 31 | G43: 118 | H43: 69 | I43: 64
A44: 461 | B44: CA | C44: Eureka / Arcata / McKinleyville | D44: Humboldt | E44: June 1 | F44: August 31 | G44: 169 | H44: 69 | I44: 64
A45: 461 | B45: CA | C45: Eureka / Arcata / McKinleyville | D45: Humboldt | E45: September 1 | F45: September 30 | G45: 118 | H45: 69 | I45: 64
A46: 21 | B46: CA | C46: Fresno | D46: Fresno | G46: 113 | H46: 69 | I46: 64
A47: 22 | B47: CA | C47: Los Angeles | D47: Los Angeles / Orange / Ventura / Edwards AFB less the city of Santa Monica | E47: October 1 | F47: October 31 | G47: 182 | H47: 74 | I47: 69
A48: 22 | B48: CA | C48: Los Angeles | D48: Los Angeles / Orange / Ventura / Edwards AFB less the city of Santa Monica | E48: November 1 | F48: December 31 | G48: 168 | H48: 74 | I48: 69
A49: 22 | B49: CA | C49: Los Angeles | D49: Los Angeles / Orange / Ventura / Edwards AFB less the city of Santa Monica | E49: January 1 | F49: September 30 | G49: 182 | H49: 74 | I49: 69
A50: 23 | B50: CA | C50: Mammoth Lakes | D50: Mono | E50: October 1 | F50: November 30 | G50: 138 | H50: 79 | I50: 74
A51: 23 | B51: CA | C51: Mammoth Lakes | D51: Mono | E51: December 1 | F51: June 30 | G51: 156 | H51: 79 | I51: 74
A52: 23 | B52: CA | C52: Mammoth Lakes | D52: Mono | E52: July 1 | F52: September 30 | G52: 138 | H52: 79 | I52: 74
A53: 24 | B53: CA | C53: Mill Valley / San Rafael / Novato | D53: Marin | E53: October 1 | F53: October 31 | G53: 189 | H53: 74 | I53: 69
A54: 24 | B54: CA | C54: Mill Valley / San Rafael / Novato | D54: Marin | E54: November 1 | F54: May 31 | G54: 166 | H54: 74 | I54: 69
A55: 24 | B55: CA | C55: Mill Valley / San Rafael / Novato | D55: Marin | E55: June 1 | F55: September 30 | G55: 189 | H55: 74 | I55: 69
A56: 26 | B56: CA | C56: Monterey | D56: Monterey | E56: October 1 | F56: May 31 | G56: 166 | H56: 74 | I56: 69
A57: 26 | B57: CA | C57: Monterey | D57: Monterey | E57: June 1 | F57: August 31 | G57: 240 | H57: 74 | I57: 69
A58: 26 | B58: CA | C58: Monterey | D58: Monterey | E58: September 1 | F58: September 30 | G58: 166 | H58: 74 | I58: 69
A59: 27 | B59: CA | C59: Napa | D59: Napa | E59: October 1 | F59: November 30 | G59: 231 | H59: 79 | I59: 74
A60: 27 | B60: CA | C60: Napa | D60: Napa | E60: December 1 | F60: February 28 | G60: 189 | H60: 79 | I60: 74
A61: 27 | B61: CA | C61: Napa | D61: Napa | E61: March 1 | F61: September 30 | G61: 231 | H61: 79 | I61: 74
A62: 28 | B62: CA | C62: Oakhurst | D62: Madera | E62: October 1 | F62: April 30 | G62: 111 | H62: 69 | I62: 64
A63: 28 | B63: CA | C63: Oakhurst | D63: Madera | E63: May 1 | F63: September 30 | G63: 139 | H63: 69 | I63: 64
A64: 29 | B64: CA | C64: Oakland | D64: Alameda | G64: 189 | H64: 74 | I64: 69
A65: 30 | B65: CA | C65: Palm Springs | D65: Riverside | E65: October 1 | F65: April 30 | G65: 165 | H65: 69 | I65: 64
A66: 30 | B66: CA | C66: Palm Springs | D66: Riverside | E66: May 1 | F66: September 30 | G66: 126 | H66: 69 | I66: 64
A67: 31 | B67: CA | C67: Point Arena / Gualala | D67: Mendocino | G67: 133 | H67: 79 | I67: 74
A68: 33 | B68: CA | C68: Sacramento | D68: Sacramento | G68: 145 | H68: 69 | I68: 64
A69: 34 | B69: CA | C69: San Diego | D69: San Diego | E69: October 1 | F69: January 31 | G69: 161 | H69: 74 | I69: 69
A70: 34 | B70: CA | C70: San Diego | D70: San Diego | E70: February 1 | F70: May 31 | G70: 181 | H70: 74 | I70: 69
A71: 34 | B71: CA | C71: San Diego | D71: San Diego | E71: June 1 | F71: August 31 | G71: 186 | H71: 74 | I71: 69
A72: 34 | B72: CA | C72: San Diego | D72: San Diego | E72: September 1 | F72: September 30 | G72: 161 | H72: 74 | I72: =H72-5 -> 69
A73: 35 | B73: CA | C73: San Francisco | D73: San Francisco | E73: October 1 | F73: December 31 | G73: 288 | H73: 79 | I73: 74
A74: 35 | B74: CA | C74: San Francisco | D74: San Francisco | E74: January 1 | F74: March 31 | G74: 333 | H74: 79 | I74: 74
A75: 35 | B75: CA | C75: San Francisco | D75: San Francisco | E75: April 1 | F75: August 31 | G75: 270 | H75: 79 | I75: 74
A76: 35 | B76: CA | C76: San Francisco | D76: San Francisco | E76: September 1 | F76: September 30 | G76: 288 | H76: 79 | I76: 74
A77: 36 | B77: CA | C77: San Luis Obispo | D77: San Luis Obispo | E77: October 1 | F77: May 31 | G77: 149 | H77: 74 | I77: 69
A78: 36 | B78: CA | C78: San Luis Obispo | D78: San Luis Obispo | E78: June 1 | F78: August 31 | G78: 191 | H78: 74 | I78: 69
A79: 36 | B79: CA | C79: San Luis Obispo | D79: San Luis Obispo | E79: September 1 | F79: September 30 | G79: 149 | H79: 74 | I79: 69
A80: 37 | B80: CA | C80: San Mateo / Foster City / Belmont | D80: San Mateo | G80: 222 | H80: 74 | I80: 69
A81: 38 | B81: CA | C81: Santa Barbara | D81: Santa Barbara | E81: October 1 | F81: June 30 | G81: 214 | H81: 74 | I81: 69
A82: 38 | B82: CA | C82: Santa Barbara | D82: Santa Barbara | E82: July 1 | F82: August 31 | G82: 289 | H82: 74 | I82: 69
A83: 38 | B83: CA | C83: Santa Barbara | D83: Santa Barbara | E83: September 1 | F83: September 30 | G83: 214 | H83: 74 | I83: 69
A84: 39 | B84: CA | C84: Santa Cruz | D84: Santa Cruz | E84: October 1 | F84: May 31 | G84: 128 | H84: 69 | I84: 64
A85: 39 | B85: CA | C85: Santa Cruz | D85: Santa Cruz | E85: June 1 | F85: August 31 | G85: 172 | H85: 69 | I85: 64
A86: 39 | B86: CA | C86: Santa Cruz | D86: Santa Cruz | E86: September 1 | F86: September 30 | G86: 128 | H86: 69 | I86: 64
A87: 40 | B87: CA | C87: Santa Monica | D87: City limits of Santa Monica | E87: October 1 | F87: May 31 | G87: 239 | H87: 79 | I87: 74
A88: 40 | B88: CA | C88: Santa Monica | D88: City limits of Santa Monica | E88: June 1 | F88: August 31 | G88: 284 | H88: 79 | I88: 74
A89: 40 | B89: CA | C89: Santa Monica | D89: City limits of Santa Monica | E89: September 1 | F89: September 30 | G89: 239 | H89: 79 | I89: 74
A90: 41 | B90: CA | C90: Santa Rosa | D90: Sonoma | G90: 157 | H90: 74 | I90: 69
A91: 42 | B91: CA | C91: South Lake Tahoe | D91: El Dorado | E91: October 1 | F91: December 31 | G91: 148 | H91: 74 | I91: 69
A92: 42 | B92: CA | C92: South Lake Tahoe | D92: El Dorado | E92: January 1 | F92: June 30 | G92: 121 | H92: 74 | I92: 69
A93: 42 | B93: CA | C93: South Lake Tahoe | D93: El Dorado | E93: July 1 | F93: September 30 | G93: 148 | H93: 74 | I93: 69
A94: 43 | B94: CA | C94: Stockton | D94: San Joaquin | G94: 140 | H94: 74 | I94: 69
A95: 44 | B95: CA | C95: Sunnyvale / Palo Alto / San Jose | D95: Santa Clara | G95: 245 | H95: 74 | I95: 69
A96: 45 | B96: CA | C96: Tahoe City | D96: Placer | G96: 124 | H96: 74 | I96: 69
A97: 46 | B97: CA | C97: Truckee | D97: Nevada | E97: October 1 | F97: February 28 | G97: 154 | H97: 79 | I97: 74
A98: 46 | B98: CA | C98: Truckee | D98: Nevada | E98: March 1 | F98: May 31 | G98: 126 | H98: 79 | I98: 74
A99: 46 | B99: CA | C99: Truckee | D99: Nevada | E99: June 1 | F99: August 31 | G99: 160 | H99: 79 | I99: 74
A100: 46 | B100: CA | C100: Truckee | D100: Nevada | E100: September 1 | F100: September 30 | G100: 154 | H100: 79 | I100: 74
A101: 47 | B101: CA | C101: Visalia | D101: Tulare | G101: 125 | H101: 69 | I101: 64
A102: 48 | B102: CA | C102: West Sacramento / Davis | D102: Yolo | G102: 133 | H102: 69 | I102: 64
A103: 49 | B103: CA | C103: Yosemite National Park | D103: Mariposa | E103: October 1 | F103: November 30 | G103: 127 | H103: 79 | I103: 74
A104: 49 | B104: CA | C104: Yosemite National Park | D104: Mariposa | E104: December 1 | F104: August 31 | G104: 141 | H104: 79 | I104: 74
A105: 49 | B105: CA | C105: Yosemite National Park | D105: Mariposa | E105: September 1 | F105: September 30 | G105: 127 | H105: 79 | I105: 74
A106: 50 | B106: CO | C106: Aspen | D106: Pitkin | E106: October 1 | F106: November 30 | G106: 188 | H106: 79 | I106: 74
A107: 50 | B107: CO | C107: Aspen | D107: Pitkin | E107: December 1 | F107: March 31 | G107: 375 | H107: 79 | I107: 74
A108: 50 | B108: CO | C108: Aspen | D108: Pitkin | E108: April 1 | F108: May 31 | G108: 147 | H108: 79 | I108: 74
A109: 50 | B109: CO | C109: Aspen | D109: Pitkin | E109: June 1 | F109: August 31 | G109: 235 | H109: 79 | I109: 74
A110: 50 | B110: CO | C110: Aspen | D110: Pitkin | E110: September 1 | F110: September 30 | G110: 188 | H110: 79 | I110: 74
A111: 52 | B111: CO | C111: Boulder / Broomfield | D111: Boulder / Broomfield | E111: October 1 | F111: April 30 | G111: 128 | H111: 69 | I111: 64
A112: 52 | B112: CO | C112: Boulder / Broomfield | D112: Boulder / Broomfield | E112: May 1 | F112: August 31 | G112: 160 | H112: 69 | I112: 64
A113: 52 | B113: CO | C113: Boulder / Broomfield | D113: Boulder / Broomfield | E113: September 1 | F113: September 30 | G113: 128 | H113: 69 | I113: 64
A114: 53 | B114: CO | C114: Colorado Springs | D114: El Paso | E114: October 1 | F114: May 31 | G114: 121 | H114: 69 | I114: 64
A115: 53 | B115: CO | C115: Colorado Springs | D115: El Paso | E115: June 1 | F115: August 31 | G115: 178 | H115: 69 | I115: 64
A116: 53 | B116: CO | C116: Colorado Springs | D116: El Paso | E116: September 1 | F116: September 30 | G116: 121 | H116: 69 | I116: 64
A117: 54 | B117: CO | C117: Cortez | D117: Montezuma | E117: October 1 | F117: October 31 | G117: 134 | H117: 64 | I117: 59
A118: 54 | B118: CO | C118: Cortez | D118: Montezuma | E118: November 1 | F118: April 30 | G118: 98 | H118: 64 | I118: 59
A119: 54 | B119: CO | C119: Cortez | D119: Montezuma | E119: May 1 | F119: September 30 | G119: 134 | H119: 64 | I119: 59
A120: 55 | B120: CO | C120: Crested Butte / Gunnison | D120: Gunnison | E120: October 1 | F120: November 30 | G120: 147 | H120: 74 | I120: 69
A121: 55 | B121: CO | C121: Crested Butte / Gunnison | D121: Gunnison | E121: December 1 | F121: March 31 | G121: 175 | H121: 74 | I121: 69
A122: 55 | B122: CO | C122: Crested Butte / Gunnison | D122: Gunnison | E122: April 1 | F122: May 31 | G122: 106 | H122: 74 | I122: 69
A123: 55 | B123: CO | C123: Crested Butte / Gunnison | D123: Gunnison | E123: June 1 | F123: September 30 | G123: 147 | H123: 74 | I123: 69
A124: 56 | B124: CO | C124: Denver / Aurora | D124: Denver / Adams / Arapahoe / Jefferson | E124: October 1 | F124: October 31 | G124: 199 | H124: 79 | I124: 74
A125: 56 | B125: CO | C125: Denver / Aurora | D125: Denver / Adams / Arapahoe / Jefferson | E125: November 1 | F125: December 31 | G125: 153 | H125: 79 | I125: 74
A126: 56 | B126: CO | C126: Denver / Aurora | D126: Denver / Adams / Arapahoe / Jefferson | E126: January 1 | F126: March 31 | G126: 162 | H126: 79 | I126: 74
A127: 56 | B127: CO | C127: Denver / Aurora | D127: Denver / Adams / Arapahoe / Jefferson | E127: April 1 | F127: September 30 | G127: 199 | H127: 79 | I127: 74
A128: 427 | B128: CO | C128: Douglas | D128: Douglas | E128: October 1 | F128: May 31 | G128: 115 | H128: 69 | I128: 64
A129: 427 | B129: CO | C129: Douglas | D129: Douglas | E129: June 1 | F129: August 31 | G129: 140 | H129: 69 | I129: 64
A130: 427 | B130: CO | C130: Douglas | D130: Douglas | E130: September 1 | F130: September 30 | G130: 115 | H130: 69 | I130: 64
A131: 57 | B131: CO | C131: Durango | D131: La Plata | E131: October 1 | F131: May 31 | G131: 116 | H131: 74 | I131: 69
A132: 57 | B132: CO | C132: Durango | D132: La Plata | E132: June 1 | F132: September 30 | G132: 179 | H132: 74 | I132: 69
A133: 58 | B133: CO | C133: Fort Collins / Loveland | D133: Larimer | G133: 113 | H133: 69 | I133: 64
A134: 493 | B134: CO | C134: Grand Lake | D134: Grand | E134: October 1 | F134: November 30 | G134: 164 | H134: 79 | I134: 74
A135: 493 | B135: CO | C135: Grand Lake | D135: Grand | E135: December 1 | F135: March 31 | G135: 278 | H135: 79 | I135: 74
A136: 493 | B136: CO | C136: Grand Lake | D136: Grand | E136: April 1 | F136: May 31 | G136: 121 | H136: 79 | I136: =H136-5 -> 74
A137: 493 | B137: CO | C137: Grand Lake | D137: Grand | E137: June 1 | F137: September 30 | G137: 164 | H137: 79 | I137: 74
A138: 61 | B138: CO | C138: Montrose | D138: Montrose | E138: October 1 | F138: May 31 | G138: 106 | H138: 69 | I138: 64
A139: 61 | B139: CO | C139: Montrose | D139: Montrose | E139: June 1 | F139: September 30 | G139: 131 | H139: 69 | I139: 64
A140: 63 | B140: CO | C140: Silverthorne / Breckenridge | D140: Summit | E140: October 1 | F140: November 30 | G140: 185 | H140: 79 | I140: 74
A141: 63 | B141: CO | C141: Silverthorne / Breckenridge | D141: Summit | E141: December 1 | F141: March 31 | G141: 332 | H141: 79 | I141: 74
A142: 63 | B142: CO | C142: Silverthorne / Breckenridge | D142: Summit | E142: April 1 | F142: May 31 | G142: 132 | H142: 79 | I142: 74
A143: 63 | B143: CO | C143: Silverthorne / Breckenridge | D143: Summit | E143: June 1 | F143: September 30 | G143: 185 | H143: 79 | I143: 74
A144: 64 | B144: CO | C144: Steamboat Springs | D144: Routt | E144: October 1 | F144: November 30 | G144: 135 | H144: 79 | I144: 74
A145: 64 | B145: CO | C145: Steamboat Springs | D145: Routt | E145: December 1 | F145: March 31 | G145: 181 | H145: 79 | I145: 74
A146: 64 | B146: CO | C146: Steamboat Springs | D146: Routt | E146: April 1 | F146: May 31 | G146: 98 | H146: 79 | I146: 74
A147: 64 | B147: CO | C147: Steamboat Springs | D147: Routt | E147: June 1 | F147: September 30 | G147: 135 | H147: 79 | I147: 74
A148: 65 | B148: CO | C148: Telluride | D148: San Miguel | E148: October 1 | F148: November 30 | G148: 197 | H148: 79 | I148: 74
A149: 65 | B149: CO | C149: Telluride | D149: San Miguel | E149: December 1 | F149: March 31 | G149: 418 | H149: 79 | I149: 74
A150: 65 | B150: CO | C150: Telluride | D150: San Miguel | E150: April 1 | F150: September 30 | G150: 197 | H150: 79 | I150: 74
A151: 66 | B151: CO | C151: Vail | D151: Eagle | E151: October 1 | F151: November 30 | G151: 208 | H151: 79 | I151: 74
A152: 66 | B152: CO | C152: Vail | D152: Eagle | E152: December 1 | F152: March 31 | G152: 485 | H152: 79 | I152: 74
A153: 66 | B153: CO | C153: Vail | D153: Eagle | E153: April 1 | F153: September 30 | G153: 208 | H153: 79 | I153: 74
A154: 67 | B154: CT | C154: Bridgeport / Danbury | D154: Fairfield | G154: 125 | H154: 69 | I154: 64
A155: 69 | B155: CT | C155: Hartford | D155: Hartford | G155: 132 | H155: 69 | I155: 64
A156: 71 | B156: CT | C156: New Haven | D156: New Haven | G156: 114 | H156: 69 | I156: 64
A157: 72 | B157: CT | C157: New London / Groton | D157: New London | G157: 107 | H157: 69 | I157: 64
A158: 75 | B158: DC | C158: District of Columbia | D158: Washington DC (also the cities of Alexandria, Falls Church and Fairfax, and the counties of Arlington and Fairfax, in Virginia; and the counties of Montgomery and Prince George's in Maryland) | E158: October 1 | F158: October 31 | G158: 257 | H158: 79 | I158: 74
A159: 75 | B159: DC | C159: District of Columbia | D159: Washington DC (also the cities of Alexandria, Falls Church and Fairfax, and the counties of Arlington and Fairfax, in Virginia; and the counties of Montgomery and Prince George's in Maryland) | E159: November 1 | F159: February 28 | G159: 188 | H159: 79 | I159: 74
A160: 75 | B160: DC | C160: District of Columbia | D160: Washington DC (also the cities of Alexandria, Falls Church and Fairfax, and the counties of Arlington and Fairfax, in Virginia; and the counties of Montgomery and Prince George's in Maryland) | E160: March 1 | F160: June 30 | G160: 258 | H160: 79 | I160: 74
A161: 75 | B161: DC | C161: District of Columbia | D161: Washington DC (also the cities of Alexandria, Falls Church and Fairfax, and the counties of Arlington and Fairfax, in Virginia; and the counties of Montgomery and Prince George's in Maryland) | E161: July 1 | F161: August 31 | G161: 172 | H161: 79 | I161: 74
A162: 75 | B162: DC | C162: District of Columbia | D162: Washington DC (also the cities of Alexandria, Falls Church and Fairfax, and the counties of Arlington and Fairfax, in Virginia; and the counties of Montgomery and Prince George's in Maryland) | E162: September 1 | F162: September 30 | G162: 257 | H162: 79 | I162: 74
A163: 77 | B163: DE | C163: Lewes | D163: Sussex | E163: October 1 | F163: April 30 | G163: 113 | H163: 64 | I163: 59
A164: 77 | B164: DE | C164: Lewes | D164: Sussex | E164: May 1 | F164: June 30 | G164: 174 | H164: 64 | I164: 59
A165: 77 | B165: DE | C165: Lewes | D165: Sussex | E165: July 1 | F165: August 31 | G165: 279 | H165: 64 | I165: 59
A166: 77 | B166: DE | C166: Lewes | D166: Sussex | E166: September 1 | F166: September 30 | G166: 113 | H166: 64 | I166: 59
A167: 78 | B167: DE | C167: Wilmington | D167: New Castle | G167: 131 | H167: 64 | I167: 59
A168: 99 | B168: FL | C168: Boca Raton / Delray Beach / Jupiter | D168: Palm Beach / Hendry | E168: October 1 | F168: November 30 | G168: 134 | H168: 69 | I168: 64
A169: 99 | B169: FL | C169: Boca Raton / Delray Beach / Jupiter | D169: Palm Beach / Hendry | E169: December 1 | F169: April 30 | G169: 209 | H169: 69 | I169: 64
A170: 99 | B170: FL | C170: Boca Raton / Delray Beach / Jupiter | D170: Palm Beach / Hendry | E170: May 1 | F170: September 30 | G170: 134 | H170: 69 | I170: 64
A171: 80 | B171: FL | C171: Bradenton | D171: Manatee | E171: October 1 | F171: January 31 | G171: 129 | H171: 64 | I171: 59
A172: 80 | B172: FL | C172: Bradenton | D172: Manatee | E172: February 1 | F172: March 31 | G172: 208 | H172: 64 | I172: 59
A173: 80 | B173: FL | C173: Bradenton | D173: Manatee | E173: April 1 | F173: September 30 | G173: 129 | H173: 64 | I173: 59
A174: 81 | B174: FL | C174: Cocoa Beach | D174: Brevard | E174: October 1 | F174: January 31 | G174: 144 | H174: 74 | I174: 69
A175: 81 | B175: FL | C175: Cocoa Beach | D175: Brevard | E175: February 1 | F175: March 31 | G175: 183 | H175: 74 | I175: 69
A176: 81 | B176: FL | C176: Cocoa Beach | D176: Brevard | E176: April 1 | F176: September 30 | G176: 144 | H176: 74 | I176: 69
A177: 82 | B177: FL | C177: Daytona Beach | D177: Volusia | E177: October 1 | F177: January 31 | G177: 116 | H177: 69 | I177: 64
A178: 82 | B178: FL | C178: Daytona Beach | D178: Volusia | E178: February 1 | F178: March 31 | G178: 156 | H178: 69 | I178: 64
A179: 82 | B179: FL | C179: Daytona Beach | D179: Volusia | E179: April 1 | F179: July 31 | G179: 135 | H179: 69 | I179: 64
A180: 82 | B180: FL | C180: Daytona Beach | D180: Volusia | E180: August 1 | F180: September 30 | G180: 116 | H180: 69 | I180: 64
A181: 84 | B181: FL | C181: Fort Lauderdale | D181: Broward | E181: October 1 | F181: December 31 | G181: 183 | H181: 69 | I181: 64
A182: 84 | B182: FL | C182: Fort Lauderdale | D182: Broward | E182: January 1 | F182: April 30 | G182: 221 | H182: 69 | I182: 64
A183: 84 | B183: FL | C183: Fort Lauderdale | D183: Broward | E183: May 1 | F183: September 30 | G183: 150 | H183: 69 | I183: 64
A184: 85 | B184: FL | C184: Fort Myers | D184: Lee | E184: October 1 | F184: November 30 | G184: 124 | H184: 64 | I184: 59
A185: 85 | B185: FL | C185: Fort Myers | D185: Lee | E185: December 1 | F185: January 31 | G185: 164 | H185: 64 | I185: 59
A186: 85 | B186: FL | C186: Fort Myers | D186: Lee | E186: February 1 | F186: March 31 | G186: 252 | H186: 64 | I186: 59
A187: 85 | B187: FL | C187: Fort Myers | D187: Lee | E187: April 1 | F187: September 30 | G187: 124 | H187: 64 | I187: 59
A188: 83 | B188: FL | C188: Fort Walton Beach / De Funiak Springs | D188: Okaloosa / Walton | E188: October 1 | F188: October 31 | G188: 186 | H188: 69 | I188: 64
A189: 83 | B189: FL | C189: Fort Walton Beach / De Funiak Springs | D189: Okaloosa / Walton | E189: November 1 | F189: February 28 | G189: 109 | H189: 69 | I189: 64
A190: 83 | B190: FL | C190: Fort Walton Beach / De Funiak Springs | D190: Okaloosa / Walton | E190: March 1 | F190: May 31 | G190: 191 | H190: 69 | I190: 64
A191: 83 | B191: FL | C191: Fort Walton Beach / De Funiak Springs | D191: Okaloosa / Walton | E191: June 1 | F191: July 31 | G191: 305 | H191: 69 | I191: 64
A192: 83 | B192: FL | C192: Fort Walton Beach / De Funiak Springs | D192: Okaloosa / Walton | E192: August 1 | F192: September 30 | G192: 186 | H192: 69 | I192: 64
A193: 89 | B193: FL | C193: Gulf Breeze | D193: Santa Rosa | E193: October 1 | F193: February 28 | G193: 130 | H193: 59 | I193: 54
A194: 89 | B194: FL | C194: Gulf Breeze | D194: Santa Rosa | E194: March 1 | F194: May 31 | G194: 162 | H194: 59 | I194: 54
A195: 89 | B195: FL | C195: Gulf Breeze | D195: Santa Rosa | E195: June 1 | F195: July 31 | G195: 252 | H195: 59 | I195: 54
A196: 89 | B196: FL | C196: Gulf Breeze | D196: Santa Rosa | E196: August 1 | F196: September 30 | G196: 130 | H196: 59 | I196: 54
A197: 91 | B197: FL | C197: Key West | D197: Monroe | E197: October 1 | F197: November 30 | G197: 289 | H197: 69 | I197: 64
A198: 91 | B198: FL | C198: Key West | D198: Monroe | E198: December 1 | F198: April 30 | G198: 429 | H198: 69 | I198: 64
A199: 91 | B199: FL | C199: Key West | D199: Monroe | E199: May 1 | F199: July 31 | G199: 329 | H199: 69 | I199: 64
A200: 91 | B200: FL | C200: Key West | D200: Monroe | E200: August 1 | F200: September 30 | G200: 255 | H200: 69 | I200: =H200-5 -> 64
A201: 95 | B201: FL | C201: Miami | D201: Miami-Dade | E201: October 1 | F201: November 30 | G201: 146 | H201: 69 | I201: 64
A202: 95 | B202: FL | C202: Miami | D202: Miami-Dade | E202: December 1 | F202: March 31 | G202: 215 | H202: 69 | I202: 64
... 490 more rows

Sheet IRS Foreign
A1: FY2023 Per Diem Rates - Effective October 1, 2022
A3: NOTE: Any location not listed for per diem under a country takes the "Other" rate we administer and publish for that country. An unlisted suburb of a listed location takes the "Other" rate, not that of the location of which it is a suburb.
A5: Please Note: Rates provided are GSA rates minus Incidentals which Rutgers allows expensed.
A6: Incidentals include tolls, parking, gratuities.
A8: Country | B8: Location | C8: Season Code | D8: Season Start Date | E8: Season End Date | F8: Lodging | G8: Meals & Incidentals | H8: Per Diem | I8: Meals | J8: Effective Date | K8: Footnote Reference | L8: Location Code
A9: AFGHANISTAN | B9: [Other] | C9: 1149 | D9: 2022-01-01 | E9: 2022-12-31 | F9: 0 | G9: 15 | H9: 15 | I9: =G9*0.8 -> 12 | J9: 2003-08-01 | K9: 19,2 | L9: 11804
A10: AFGHANISTAN | B10: Kabul | C10: 1149 | D10: 2022-01-01 | E10: 2022-12-31 | F10: 0 | G10: 78 | H10: 78 | I10: =G10*0.8 -> 62.4 | J10: 2019-11-01 | K10: 19,2 | L10: 10323
A11: ALBANIA | B11: [Other] | C11: 1070 | D11: 2022-01-01 | E11: 2022-12-31 | F11: 64 | G11: 69 | H11: 133 | I11: 55.2 | J11: 2022-08-01 | L11: 11908
A12: ALBANIA | B12: Tirana | C12: 1070 | D12: 2022-01-01 | E12: 2022-12-31 | F12: 117 | G12: 80 | H12: 197 | I12: 64 | J12: 2022-08-01 | L12: 10104
A13: ALGERIA | B13: [Other] | C13: 1150 | D13: 2022-01-01 | E13: 2022-12-31 | F13: 192 | G13: 112 | H13: 304 | I13: 89.6 | J13: 2015-01-01 | K13: 2 | L13: 11805
A14: ALGERIA | B14: Algiers | C14: 1150 | D14: 2022-01-01 | E14: 2022-12-31 | F14: 145 | G14: 61 | H14: 206 | I14: 48.8 | J14: 2022-09-01 | L14: 10324
A15: ANDORRA | B15: Andorra | C15: 1376 | D15: 2022-01-01 | E15: 2022-12-31 | F15: 209 | G15: 123 | H15: 332 | I15: 98.4 | J15: 2008-01-01 | L15: 11079
A16: ANGOLA | B16: [Other] | C16: 1176 | D16: 2022-01-01 | E16: 2022-12-31 | F16: 405 | G16: 170 | H16: 575 | I16: 136 | J16: 2013-08-01 | L16: 11822
A17: ANGOLA | B17: Luanda | C17: 1176 | D17: 2022-01-01 | E17: 2022-12-31 | F17: 405 | G17: 170 | H17: 575 | I17: 136 | J17: 2013-08-01 | L17: 10373
A18: ANGUILLA | B18: The Valley | C18: 1463 | D18: 2022-01-01 | E18: 2022-12-31 | F18: 244 | G18: 130 | H18: 374 | I18: 104 | J18: 2020-02-01 | L18: 91116
A19: ANTARCTICA | B19: Antarctica Region Posts | C19: 1462 | D19: 2022-01-01 | E19: 2022-12-31 | F19: 0 | G19: 1 | H19: 1 | I19: 0.8 | J19: 2010-06-01 | L19: 19942
A20: ANTIGUA AND BARBUDA | B20: [Other] | C20: 1041 | D20: 2022-04-16 | E20: 2022-12-14 | F20: 37 | G20: 18 | H20: 55 | I20: 14.4 | J20: 2008-05-01 | L20: 11984
A21: ANTIGUA AND BARBUDA | B21: [Other] | C21: 1041 | D21: 2022-12-15 | E21: 2022-04-15 | F21: 50 | G21: 19 | H21: 69 | I21: 15.2 | J21: 2008-05-01 | L21: 11984
A22: ANTIGUA AND BARBUDA | B22: Antigua and Barbuda | C22: 1041 | D22: 2022-05-17 | E22: 2022-12-14 | F22: 175 | G22: 70 | H22: 245 | I22: 56 | J22: 2020-02-01 | L22: 11052
A23: ANTIGUA AND BARBUDA | B23: Antigua and Barbuda | C23: 1041 | D23: 2022-12-15 | E23: 2022-05-16 | F23: 204 | G23: 73 | H23: 277 | I23: 58.4 | J23: 2020-02-01 | L23: 11052
A24: ARGENTINA | B24: [Other] | C24: 1038 | D24: 2022-01-01 | E24: 2022-12-31 | F24: 175 | G24: 117 | H24: 292 | I24: 93.6 | J24: 2012-05-01 | L24: 11737
A25: ARGENTINA | B25: Bariloche | C25: 1038 | D25: 2022-01-01 | E25: 2022-12-31 | F25: 218 | G25: 112 | H25: 330 | I25: 89.6 | J25: 2012-03-01 | L25: 12637
A26: ARGENTINA | B26: Buenos Aires | C26: 1038 | D26: 2022-01-01 | E26: 2022-12-31 | F26: 267 | G26: 129 | H26: 396 | I26: 103.2 | J26: 2017-01-01 | L26: 10016
A27: ARGENTINA | B27: Mendoza | C27: 1038 | D27: 2022-01-01 | E27: 2022-12-31 | F27: 182 | G27: 105 | H27: 287 | I27: 84 | J27: 2012-05-01 | L27: 19952
A28: ARMENIA | B28: [Other] | C28: 1071 | D28: 2022-01-01 | E28: 2022-12-31 | F28: 141 | G28: 87 | H28: 228 | I28: 69.6 | J28: 2022-10-01 | L28: 11756
A29: ARMENIA | B29: Yerevan | C29: 1071 | D29: 2022-01-01 | E29: 2022-12-31 | F29: 141 | G29: 87 | H29: 228 | I29: 69.6 | J29: 2022-10-01 | L29: 10105
A30: Aruba | B30: [Other] | C30: 9988 | D30: 2022-01-15 | E30: 2022-04-22 | F30: 310 | G30: 141 | H30: 451 | I30: 112.8 | J30: 2021-05-01 | L30: 91181
A31: Aruba | B31: [Other] | C31: 9988 | D31: 2022-04-23 | E31: 2022-01-14 | F31: 259 | G31: 136 | H31: 395 | I31: 108.8 | J31: 2021-05-01 | L31: 91181
A32: Aruba | B32: Oranjestad | C32: 9988 | D32: 2022-01-15 | E32: 2022-04-22 | F32: 310 | G32: 141 | H32: 451 | I32: 112.8 | J32: 2019-10-01 | L32: 11024
A33: Aruba | B33: Oranjestad | C33: 9988 | D33: 2022-04-23 | E33: 2022-01-14 | F33: 259 | G33: 136 | H33: 395 | I33: 108.8 | J33: 2019-10-01 | L33: 11024
A34: ASCENSION ISLAND | B34: Ascension Island | C34: 1360 | D34: 2022-01-01 | E34: 2022-12-31 | F34: 122 | G34: 29 | H34: 151 | I34: 23.2 | J34: 2016-11-01 | L34: 11053
A35: AUSTRALIA | B35: [Other] | C35: 1118 | D35: 2022-01-01 | E35: 2022-12-31 | F35: 124 | G35: 97 | H35: 221 | I35: 77.6 | J35: 2022-08-01 | L35: 11787
A36: AUSTRALIA | B36: Adelaide | C36: 1118 | D36: 2022-01-01 | E36: 2022-12-31 | F36: 143 | G36: 118 | H36: 261 | I36: 94.4 | J36: 2022-08-01 | L36: 10244
A37: AUSTRALIA | B37: Bendigo | C37: 1118 | D37: 2022-01-01 | E37: 2022-12-31 | F37: 252 | G37: 118 | H37: 370 | I37: 94.4 | J37: 2022-08-01 | L37: 19983
A38: AUSTRALIA | B38: Brisbane | C38: 1118 | D38: 2022-01-01 | E38: 2022-12-31 | F38: 153 | G38: 95 | H38: 248 | I38: 76 | J38: 2022-08-01 | L38: 10245
A39: AUSTRALIA | B39: Broome | C39: 1118 | D39: 2022-01-01 | E39: 2022-12-31 | F39: 282 | G39: 123 | H39: 405 | I39: 98.4 | J39: 2022-08-01 | L39: 15035
A40: AUSTRALIA | B40: Cairns | C40: 1118 | D40: 2022-01-01 | E40: 2022-12-31 | F40: 124 | G40: 97 | H40: 221 | I40: 77.6 | J40: 2022-08-01 | L40: 12583
A41: AUSTRALIA | B41: Canberra | C41: 1118 | D41: 2022-01-01 | E41: 2022-12-31 | F41: 150 | G41: 118 | H41: 268 | I41: 94.4 | J41: 2022-08-01 | L41: 10243
A42: AUSTRALIA | B42: Darwin, Northern Territory | C42: 1118 | D42: 2022-01-01 | E42: 2022-12-31 | F42: 195 | G42: 118 | H42: 313 | I42: 94.4 | J42: 2022-08-01 | L42: 12342
A43: AUSTRALIA | B43: Exmouth | C43: 1118 | D43: 2022-01-01 | E43: 2022-12-31 | F43: 160 | G43: 110 | H43: 270 | I43: 88 | J43: 2022-08-01 | L43: 15065
A44: AUSTRALIA | B44: Fremantle | C44: 1118 | D44: 2022-01-01 | E44: 2022-12-31 | F44: 173 | G44: 102 | H44: 275 | I44: 81.6 | J44: 2022-08-01 | L44: 13319
A45: AUSTRALIA | B45: Hobart | C45: 1118 | D45: 2022-01-01 | E45: 2022-12-31 | F45: 153 | G45: 125 | H45: 278 | I45: 100 | J45: 2022-08-01 | L45: 12372
A46: AUSTRALIA | B46: Melbourne | C46: 1118 | D46: 2022-01-01 | E46: 2022-12-31 | F46: 178 | G46: 138 | H46: 316 | I46: 110.4 | J46: 2022-08-01 | L46: 10246
A47: AUSTRALIA | B47: Perth | C47: 1118 | D47: 2022-01-01 | E47: 2022-12-31 | F47: 196 | G47: 130 | H47: 326 | I47: 104 | J47: 2022-08-01 | L47: 10247
A48: AUSTRALIA | B48: Richmond, NSW | C48: 1118 | D48: 2022-01-01 | E48: 2022-12-31 | F48: 139 | G48: 101 | H48: 240 | I48: 80.8 | J48: 2022-08-01 | L48: 13553
A49: AUSTRALIA | B49: Sydney | C49: 1118 | D49: 2022-01-01 | E49: 2022-12-31 | F49: 240 | G49: 139 | H49: 379 | I49: 111.2 | J49: 2022-08-01 | L49: 10248
A50: AUSTRIA | B50: [Other] | C50: 1072 | D50: 2022-01-01 | E50: 2022-12-31 | F50: 198 | G50: 113 | H50: 311 | I50: 90.4 | J50: 2022-09-01 | L50: 11757
A51: AUSTRIA | B51: Graz | C51: 1072 | D51: 2022-01-01 | E51: 2022-12-31 | F51: 229 | G51: 108 | H51: 337 | I51: 86.4 | J51: 2022-09-01 | L51: 11985
A52: AUSTRIA | B52: Innsbruck | C52: 1072 | D52: 2022-01-01 | E52: 2022-12-31 | F52: 198 | G52: 113 | H52: 311 | I52: 90.4 | J52: 2022-09-01 | L52: 11082
A53: AUSTRIA | B53: Linz | C53: 1072 | D53: 2022-01-01 | E53: 2022-12-31 | F53: 167 | G53: 132 | H53: 299 | I53: 105.6 | J53: 2022-09-01 | L53: 11410
A54: AUSTRIA | B54: Salzburg | C54: 1072 | D54: 2022-01-01 | E54: 2022-12-31 | F54: 234 | G54: 104 | H54: 338 | I54: 83.2 | J54: 2022-09-01 | L54: 10107
A55: AUSTRIA | B55: Vienna | C55: 1072 | D55: 2022-01-01 | E55: 2022-12-31 | F55: 250 | G55: 110 | H55: 360 | I55: 88 | J55: 2022-09-01 | L55: 10106
A56: AZERBAIJAN | B56: [Other] | C56: 1073 | D56: 2022-01-01 | E56: 2022-12-31 | F56: 98 | G56: 81 | H56: 179 | I56: 64.8 | J56: 2014-09-01 | L56: 11758
A57: AZERBAIJAN | B57: Baku | C57: 1073 | D57: 2022-01-01 | E57: 2022-12-31 | F57: 159 | G57: 115 | H57: 274 | I57: 92 | J57: 2022-01-01 | L57: 10109
A58: AZERBAIJAN | B58: Ganja | C58: 1073 | D58: 2022-01-01 | E58: 2022-12-31 | F58: 125 | G58: 90 | H58: 215 | I58: 72 | J58: 2014-09-01 | L58: 19944
A59: AZERBAIJAN | B59: Qabala | C59: 1073 | D59: 2022-01-01 | E59: 2022-12-31 | F59: 128 | G59: 84 | H59: 212 | I59: 67.2 | J59: 2014-09-01 | L59: 15045
A60: Bahamas, The | B60: [Other] | C60: 1039 | D60: 2022-01-01 | E60: 2022-12-31 | F60: 176 | G60: 132 | H60: 308 | I60: 105.6 | J60: 2017-07-01 | K60: 10 | L60: 11891
A61: Bahamas, The | B61: Andros Island | C61: 1039 | D61: 2022-01-01 | E61: 2022-12-31 | F61: 159 | G61: 107 | H61: 266 | I61: 85.6 | J61: 2015-08-01 | K61: 10 | L61: 11000
A62: Bahamas, The | B62: Eleuthera Island | C62: 1039 | D62: 2022-04-17 | E62: 2022-11-14 | F62: 213 | G62: 143 | H62: 356 | I62: 114.4 | J62: 2015-09-01 | K62: 10 | L62: 11001
A63: Bahamas, The | B63: Eleuthera Island | C63: 1039 | D63: 2022-11-15 | E63: 2022-04-16 | F63: 276 | G63: 150 | H63: 426 | I63: 120 | J63: 2015-09-01 | K63: 10 | L63: 11001
A64: Bahamas, The | B64: Grand Bahama Island | C64: 1039 | D64: 2022-01-01 | E64: 2022-12-31 | F64: 187 | G64: 126 | H64: 313 | I64: 100.8 | J64: 2015-05-01 | K64: 10 | L64: 11002
A65: Bahamas, The | B65: Nassau | C65: 1039 | D65: 2022-01-01 | E65: 2022-12-31 | F65: 318 | G65: 159 | H65: 477 | I65: 127.2 | J65: 2015-03-01 | K65: 10 | L65: 10017
A66: BAHRAIN | B66: Bahrain | C66: 1151 | D66: 2022-01-01 | E66: 2022-12-31 | F66: 251 | G66: 126 | H66: 377 | I66: 100.8 | J66: 2022-05-01 | L66: 11054
A67: BAHRAIN | B67: MANAMA | C67: 1151 | D67: 2022-01-01 | E67: 2022-12-31 | F67: 251 | G67: 126 | H67: 377 | I67: 100.8 | J67: 2022-05-01 | L67: 91120
A68: BANGLADESH | B68: [Other] | C68: 1152 | D68: 2022-01-01 | E68: 2022-12-31 | F68: 143 | G68: 102 | H68: 245 | I68: 81.6 | J68: 2020-05-01 | L68: 11807
A69: BANGLADESH | B69: Chittagong | C69: 1152 | D69: 2022-01-01 | E69: 2022-12-31 | F69: 150 | G69: 96 | H69: 246 | I69: 76.8 | J69: 2020-04-01 | L69: 11986
A70: BANGLADESH | B70: Dhaka | C70: 1152 | D70: 2022-01-01 | E70: 2022-12-31 | F70: 240 | G70: 95 | H70: 335 | I70: 76 | J70: 2022-09-01 | L70: 10327
A71: BANGLADESH | B71: Sylhet | C71: 1152 | D71: 2022-01-01 | E71: 2022-12-31 | F71: 177 | G71: 104 | H71: 281 | I71: 83.2 | J71: 2020-05-01 | L71: 15021
A72: BARBADOS | B72: Barbados | C72: 1045 | D72: 2022-05-01 | E72: 2022-11-14 | F72: 200 | G72: 137 | H72: 337 | I72: 109.6 | J72: 2019-07-01 | L72: 11055
A73: BARBADOS | B73: Barbados | C73: 1045 | D73: 2022-11-15 | E73: 2022-04-30 | F73: 307 | G73: 147 | H73: 454 | I73: 117.6 | J73: 2019-07-01 | L73: 11055
A74: BELARUS | B74: [Other] | C74: 1357 | D74: 2022-01-01 | E74: 2022-12-31 | F74: 190 | G74: 67 | H74: 257 | I74: =G74*0.8 -> 53.6 | J74: 2022-02-01 | L74: 11904
A75: BELARUS | B75: Minsk | C75: 1357 | D75: 2022-01-01 | E75: 2022-12-31 | F75: 190 | G75: 67 | H75: 257 | I75: 53.6 | J75: 2022-02-01 | L75: 10822
A76: BELGIUM | B76: [Other] | C76: 1075 | D76: 2022-01-01 | E76: 2022-12-31 | F76: 72 | G76: 63 | H76: 135 | I76: 50.4 | J76: 2022-09-01 | L76: 11760
A77: BELGIUM | B77: Antwerp | C77: 1075 | D77: 2022-01-01 | E77: 2022-12-31 | F77: 170 | G77: 94 | H77: 264 | I77: 75.2 | J77: 2022-09-01 | L77: 10112
A78: BELGIUM | B78: Brugge | C78: 1075 | D78: 2022-01-01 | E78: 2022-12-31 | F78: 115 | G78: 82 | H78: 197 | I78: 65.6 | J78: 2022-09-01 | K78: 12 | L78: 12125
A79: BELGIUM | B79: Brussels | C79: 1075 | D79: 2022-03-15 | E79: 2022-06-21 | F79: 203 | G79: 119 | H79: 322 | I79: 95.2 | J79: 2022-09-01 | L79: 10111
A80: BELGIUM | B80: Brussels | C80: 1075 | D80: 2022-06-22 | E80: 2022-03-14 | F80: 156 | G80: 115 | H80: 271 | I80: 92 | J80: 2022-09-01 | L80: 10111
A81: BELGIUM | B81: Diegem | C81: 1075 | D81: 2022-03-15 | E81: 2022-06-21 | F81: 203 | G81: 119 | H81: 322 | I81: 95.2 | J81: 2022-09-01 | L81: 11087
A82: BELGIUM | B82: Diegem | C82: 1075 | D82: 2022-06-22 | E82: 2022-03-14 | F82: 156 | G82: 115 | H82: 271 | I82: 92 | J82: 2022-09-01 | L82: 11087
A83: BELGIUM | B83: Kleine Brogel | C83: 1075 | D83: 2022-01-01 | E83: 2022-12-31 | F83: 102 | G83: 72 | H83: 174 | I83: 57.6 | J83: 2022-09-01 | L83: 10819
A84: BELGIUM | B84: Liege | C84: 1075 | D84: 2022-01-01 | E84: 2022-12-31 | F84: 125 | G84: 68 | H84: 193 | I84: 54.4 | J84: 2022-09-01 | L84: 11091
A85: BELGIUM | B85: SHAPE/Chievres | C85: 1075 | D85: 2022-01-01 | E85: 2022-12-31 | F85: 99 | G85: 73 | H85: 172 | I85: 58.4 | J85: 2022-09-01 | L85: 10820
A86: BELGIUM | B86: Zaventem | C86: 1075 | D86: 2022-03-15 | E86: 2022-06-21 | F86: 203 | G86: 119 | H86: 322 | I86: 95.2 | J86: 2022-09-01 | L86: 11093
A87: BELGIUM | B87: Zaventem | C87: 1075 | D87: 2022-06-22 | E87: 2022-03-14 | F87: 156 | G87: 115 | H87: 271 | I87: 92 | J87: 2022-09-01 | L87: 11093
A88: BELIZE | B88: [Other] | C88: 1044 | D88: 2022-01-01 | E88: 2022-12-31 | F88: 143 | G88: 80 | H88: 223 | I88: 64 | J88: 2020-03-01 | L88: 11742
A89: BELIZE | B89: Belize City | C89: 1044 | D89: 2022-01-01 | E89: 2022-12-31 | F89: 158 | G89: 115 | H89: 273 | I89: 92 | J89: 2020-03-01 | L89: 10049
A90: BELIZE | B90: Belmopan | C90: 1044 | D90: 2022-01-01 | E90: 2022-12-31 | F90: 156 | G90: 87 | H90: 243 | I90: 69.6 | J90: 2020-03-01 | L90: 13643
A91: BELIZE | B91: Caye Caulker | C91: 1044 | D91: 2022-01-01 | E91: 2022-12-31 | F91: 131 | G91: 111 | H91: 242 | I91: 88.8 | J91: 2020-03-01 | L91: 15072
A92: BELIZE | B92: Hopkins | C92: 1044 | D92: 2022-01-01 | E92: 2022-12-31 | F92: 199 | G92: 110 | H92: 309 | I92: 88 | J92: 2020-03-01 | L92: 15073
A93: BELIZE | B93: Placencia | C93: 1044 | D93: 2022-01-01 | E93: 2022-12-31 | F93: 202 | G93: 106 | H93: 308 | I93: 84.8 | J93: 2020-03-01 | L93: 15075
A94: BELIZE | B94: San Ignacio Town | C94: 1044 | D94: 2022-01-01 | E94: 2022-12-31 | F94: 155 | G94: 106 | H94: 261 | I94: 84.8 | J94: 2020-03-01 | L94: 15076
A95: BELIZE | B95: San Pedro | C95: 1044 | D95: 2022-01-01 | E95: 2022-12-31 | F95: 206 | G95: 121 | H95: 327 | I95: 96.8 | J95: 2020-03-01 | L95: 15018
A96: BENIN | B96: [Other] | C96: 1186 | D96: 2022-01-01 | E96: 2022-12-31 | F96: 80 | G96: 67 | H96: 147 | I96: 53.6 | J96: 2008-05-01 | L96: 11831
A97: BENIN | B97: Cotonou | C97: 1186 | D97: 2022-01-01 | E97: 2022-12-31 | F97: 116 | G97: 82 | H97: 198 | I97: 65.6 | J97: 2022-08-01 | L97: 10386
A98: BERMUDA | B98: Bermuda | C98: 1076 | D98: 2022-04-01 | E98: 2022-11-30 | F98: 428 | G98: 204 | H98: 632 | I98: 163.2 | J98: 2022-02-01 | L98: 11963
A99: BERMUDA | B99: Bermuda | C99: 1076 | D99: 2022-12-01 | E99: 2022-03-31 | F99: 311 | G99: 193 | H99: 504 | I99: 154.4 | J99: 2022-02-01 | L99: 11963
A100: BHUTAN | B100: Bhutan | C100: 1379 | D100: 2022-01-01 | E100: 2022-12-31 | F100: 280 | G100: 112 | H100: 392 | I100: 89.6 | J100: 2010-12-01 | L100: 11094
A101: BOLIVIA | B101: [Other] | C101: 1040 | D101: 2022-01-01 | E101: 2022-12-31 | F101: 77 | G101: 53 | H101: 130 | I101: 42.4 | J101: 2016-05-01 | L101: 11738
A102: BOLIVIA | B102: Cochabamba | C102: 1040 | D102: 2022-01-01 | E102: 2022-12-31 | F102: 85 | G102: 49 | H102: 134 | I102: 39.2 | J102: 2012-09-01 | L102: 10019
A103: BOLIVIA | B103: La Paz | C103: 1040 | D103: 2022-01-01 | E103: 2022-12-31 | F103: 140 | G103: 85 | H103: 225 | I103: 68 | J103: 2016-04-01 | L103: 10018
A104: BOLIVIA | B104: Potosi | C104: 1040 | D104: 2022-01-01 | E104: 2022-12-31 | F104: 88 | G104: 60 | H104: 148 | I104: 48 | J104: 2016-04-01 | L104: 12246
A105: BOLIVIA | B105: Santa Cruz | C105: 1040 | D105: 2022-01-01 | E105: 2022-12-31 | F105: 135 | G105: 82 | H105: 217 | I105: 65.6 | J105: 2015-10-01 | L105: 10435
A106: BOLIVIA | B106: Tarija | C106: 1040 | D106: 2022-01-01 | E106: 2022-12-31 | F106: 81 | G106: 60 | H106: 141 | I106: 48 | J106: 2017-09-01 | L106: 11003
A107: Bonaire, Sint Eustatius, and Saba | B107: Bonaire | C107: 9989 | D107: 2022-04-15 | E107: 2022-12-14 | F107: 118 | G107: 88 | H107: 206 | I107: 70.4 | J107: 2008-05-01 | L107: 11666
A108: Bonaire, Sint Eustatius, and Saba | B108: Bonaire | C108: 9989 | D108: 2022-12-15 | E108: 2022-04-14 | F108: 155 | G108: 91 | H108: 246 | I108: 72.8 | J108: 2008-05-01 | L108: 11666
A109: Bonaire, Sint Eustatius, and Saba | B109: Saba | C109: 9989 | D109: 2022-01-01 | E109: 2022-12-31 | F109: 186 | G109: 113 | H109: 299 | I109: 90.4 | J109: 2008-05-01 | L109: 12395
A110: Bosnia and Herzegovina | B110: [Other] | C110: 1361 | D110: 2022-01-01 | E110: 2022-12-31 | F110: 115 | G110: 63 | H110: 178 | I110: 50.4 | J110: 2022-09-01 | L110: 11915
A111: Bosnia and Herzegovina | B111: Sarajevo | C111: 1361 | D111: 2022-01-01 | E111: 2022-12-31 | F111: 115 | G111: 63 | H111: 178 | I111: 50.4 | J111: 2022-09-01 | L111: 11043
A112: BOTSWANA | B112: [Other] | C112: 1178 | D112: 2022-01-01 | E112: 2022-12-31 | F112: 108 | G112: 62 | H112: 170 | I112: 49.6 | J112: 2022-10-01 | L112: 11824
A113: BOTSWANA | B113: Francistown | C113: 1178 | D113: 2022-01-01 | E113: 2022-12-31 | F113: 116 | G113: 61 | H113: 177 | I113: 48.8 | J113: 2022-10-01 | L113: 12578
A114: BOTSWANA | B114: Gaborone | C114: 1178 | D114: 2022-01-01 | E114: 2022-12-31 | F114: 124 | G114: 70 | H114: 194 | I114: 56 | J114: 2022-10-01 | L114: 10377
A115: BOTSWANA | B115: Kasane | C115: 1178 | D115: 2022-01-01 | E115: 2022-12-31 | F115: 143 | G115: 72 | H115: 215 | I115: 57.6 | J115: 2022-10-01 | L115: 12390
A116: BOTSWANA | B116: Maun | C116: 1178 | D116: 2022-01-01 | E116: 2022-12-31 | F116: 124 | G116: 63 | H116: 187 | I116: 50.4 | J116: 2022-10-01 | L116: 12579
A117: BOTSWANA | B117: Selebi Phikwe | C117: 1178 | D117: 2022-01-01 | E117: 2022-12-31 | F117: 108 | G117: 62 | H117: 170 | I117: 49.6 | J117: 2022-10-01 | L117: 10728
A118: BOTSWANA | B118: Serowe | C118: 1178 | D118: 2022-01-01 | E118: 2022-12-31 | F118: 66 | G118: 59 | H118: 125 | I118: 47.2 | J118: 2022-10-01 | L118: 12977
A119: BRAZIL | B119: [Other] | C119: 1042 | D119: 2022-01-01 | E119: 2022-12-31 | F119: 177 | G119: 130 | H119: 307 | I119: 104 | J119: 2012-05-01 | L119: 12078
A120: BRAZIL | B120: Belem | C120: 1042 | D120: 2022-01-01 | E120: 2022-12-31 | F120: 82 | G120: 50 | H120: 132 | I120: 40 | J120: 2022-09-01 | L120: 11098
A121: BRAZIL | B121: Belo Horizonte | C121: 1042 | D121: 2022-01-01 | E121: 2022-12-31 | F121: 82 | G121: 84 | H121: 166 | I121: 67.2 | J121: 2022-09-01 | L121: 10023
A122: BRAZIL | B122: Brasilia | C122: 1042 | D122: 2022-01-01 | E122: 2022-12-31 | F122: 131 | G122: 102 | H122: 233 | I122: 81.6 | J122: 2022-09-01 | L122: 10022
A123: BRAZIL | B123: Fortaleza | C123: 1042 | D123: 2022-01-01 | E123: 2022-12-31 | F123: 210 | G123: 114 | H123: 324 | I123: 91.2 | J123: 2013-06-01 | L123: 11004
A124: BRAZIL | B124: Foz do Iguacu | C124: 1042 | D124: 2022-01-01 | E124: 2022-12-31 | F124: 76 | G124: 76 | H124: 152 | I124: 60.8 | J124: 2022-09-01 | L124: 11102
A125: BRAZIL | B125: Goiania | C125: 1042 | D125: 2022-01-01 | E125: 2022-12-31 | F125: 194 | G125: 131 | H125: 325 | I125: 104.8 | J125: 2012-05-01 | L125: 11103
A126: BRAZIL | B126: Manaus | C126: 1042 | D126: 2022-01-01 | E126: 2022-12-31 | F126: 117 | G126: 95 | H126: 212 | I126: 76 | J126: 2018-06-01 | L126: 11105
A127: BRAZIL | B127: Natal | C127: 1042 | D127: 2022-01-01 | E127: 2022-12-31 | F127: 199 | G127: 95 | H127: 294 | I127: 76 | J127: 2010-11-01 | L127: 11106
A128: BRAZIL | B128: Porto Alegre | C128: 1042 | D128: 2022-01-01 | E128: 2022-12-31 | F128: 134 | G128: 91 | H128: 225 | I128: 72.8 | J128: 2022-09-01 | L128: 10029
A129: BRAZIL | B129: Porto Velho | C129: 1042 | D129: 2022-01-01 | E129: 2022-12-31 | F129: 69 | G129: 40 | H129: 109 | I129: 32 | J129: 2022-09-01 | L129: 15062
A130: BRAZIL | B130: Recife, Pernambuco | C130: 1042 | D130: 2022-01-01 | E130: 2022-12-31 | F130: 199 | G130: 93 | H130: 292 | I130: 74.4 | J130: 2010-11-01 | L130: 10030
A131: BRAZIL | B131: Rio de Janeiro | C131: 1042 | D131: 2022-01-01 | E131: 2022-12-31 | F131: 218 | G131: 158 | H131: 376 | I131: 126.4 | J131: 2022-09-01 | L131: 10031
A132: BRAZIL | B132: Salvador da Bahia | C132: 1042 | D132: 2022-01-01 | E132: 2022-12-31 | F132: 201 | G132: 121 | H132: 322 | I132: 96.8 | J132: 2013-12-01 | L132: 11108
A133: BRAZIL | B133: Sao Paulo | C133: 1042 | D133: 2022-01-01 | E133: 2022-12-31 | F133: 286 | G133: 100 | H133: 386 | I133: 80 | J133: 2022-09-01 | K133: 30 | L133: 10033
A134: BRUNEI | B134: [Other] | C134: 1119 | D134: 2022-01-01 | E134: 2022-12-31 | F134: 75 | G134: 48 | H134: 123 | I134: 38.4 | J134: 2000-03-01 | L134: 11788
A135: BRUNEI | B135: Bandar Seri Begawan | C135: 1119 | D135: 2022-01-01 | E135: 2022-12-31 | F135: 193 | G135: 97 | H135: 290 | I135: 77.6 | J135: 2022-06-01 | L135: 10250
A136: BRUNEI | B136: Jerudong | C136: 1119 | D136: 2022-01-01 | E136: 2022-12-31 | F136: 245 | G136: 106 | H136: 351 | I136: 84.8 | J136: 2014-03-01 | L136: 19980
A137: BULGARIA | B137: [Other] | C137: 1077 | D137: 2022-01-01 | E137: 2022-12-31 | F137: 106 | G137: 81 | H137: 187 | I137: 64.8 | J137: 2021-09-01 | L137: 11762
A138: BULGARIA | B138: Bourgas | C138: 1077 | D138: 2022-01-01 | E138: 2022-12-31 | F138: 112 | G138: 74 | H138: 186 | I138: =G138*0.8 -> 59.2 | J138: 2019-03-01 | L138: 12220
A139: BULGARIA | B139: Plovdiv | C139: 1077 | D139: 2022-01-01 | E139: 2022-12-31 | F139: 119 | G139: 87 | H139: 206 | I139: 69.6 | J139: 2021-09-01 | L139: 12216
A140: BULGARIA | B140: Sofia | C140: 1077 | D140: 2022-01-01 | E140: 2022-12-31 | F140: 173 | G140: 89 | H140: 262 | I140: 71.2 | J140: 2022-09-01 | L140: 10115
A141: BULGARIA | B141: Varna | C141: 1077 | D141: 2022-01-01 | E141: 2022-12-31 | F141: 114 | G141: 77 | H141: 191 | I141: 61.6 | J141: 2020-03-01 | L141: 12219
A142: BURKINA FASO | B142: [Other] | C142: 1240 | D142: 2022-01-01 | E142: 2022-12-31 | F142: 63 | G142: 56 | H142: 119 | I142: 44.8 | J142: 2022-09-01 | L142: 11854
A143: BURKINA FASO | B143: Bobo Dioulasso | C143: 1240 | D143: 2022-01-01 | E143: 2022-12-31 | F143: 63 | G143: 56 | H143: 119 | I143: 44.8 | J143: 2022-09-01 | L143: 11116
A144: BURKINA FASO | B144: Ouagadougou | C144: 1240 | D144: 2022-01-01 | E144: 2022-12-31 | F144: 148 | G144: 95 | H144: 243 | I144: 76 | J144: 2022-09-01 | L144: 10432
A145: BURMA | B145: [Other] | C145: 1120 | D145: 2022-01-01 | E145: 2022-12-31 | F145: 150 | G145: 93 | H145: 243 | I145: 74.4 | J145: 2017-03-01 | L145: 11789
A146: BURMA | B146: Naypyitaw | C146: 1120 | D146: 2022-01-01 | E146: 2022-12-31 | F146: 110 | G146: 106 | H146: 216 | I146: 84.8 | J146: 2017-03-01 | L146: 13519
A147: BURMA | B147: Rangoon | C147: 1120 | D147: 2022-01-01 | E147: 2022-12-31 | F147: 180 | G147: 107 | H147: 287 | I147: 85.6 | J147: 2017-03-01 | L147: 10251
A148: BURUNDI | B148: [Other] | C148: 1179 | D148: 2022-01-01 | E148: 2022-12-31 | F148: 120 | G148: 48 | H148: 168 | I148: 38.4 | J148: 2021-11-01 | K148: 2 | L148: 11892
A149: BURUNDI | B149: Bujumbura | C149: 1179 | D149: 2022-01-01 | E149: 2022-12-31 | F149: 120 | G149: 48 | H149: 168 | I149: 38.4 | J149: 2021-11-01 | K149: 2 | L149: 10378
A150: CABO VERDE | B150: [Other] | C150: 1181 | D150: 2022-01-01 | E150: 2022-12-31 | F150: 56 | G150: 41 | H150: 97 | I150: 32.8 | J150: 2022-09-01 | L150: 11826
A151: CABO VERDE | B151: Boa Vista Island | C151: 1181 | D151: 2022-01-01 | E151: 2022-12-31 | F151: 150 | G151: 46 | H151: 196 | I151: 36.8 | J151: 2022-09-01 | L151: 11680
A152: CABO VERDE | B152: Fogo | C152: 1181 | D152: 2022-01-01 | E152: 2022-12-31 | F152: 62 | G152: 57 | H152: 119 | I152: 45.6 | J152: 2022-09-01 | L152: 12283
A153: CABO VERDE | B153: Praia | C153: 1181 | D153: 2022-01-01 | E153: 2022-12-31 | F153: 129 | G153: 84 | H153: 213 | I153: 67.2 | J153: 2022-09-01 | L153: 10381
A154: CABO VERDE | B154: Sal Island | C154: 1181 | D154: 2022-01-01 | E154: 2022-12-31 | F154: 140 | G154: 83 | H154: 223 | I154: 66.4 | J154: 2022-09-01 | L154: 11681
A155: CABO VERDE | B155: Sao Tiago Island | C155: 1181 | D155: 2022-01-01 | E155: 2022-12-31 | F155: 46 | G155: 40 | H155: 86 | I155: 32 | J155: 2022-09-01 | L155: 11682
A156: CABO VERDE | B156: Sao Vicente Island | C156: 1181 | D156: 2022-01-01 | E156: 2022-12-31 | F156: 103 | G156: 71 | H156: 174 | I156: 56.8 | J156: 2022-09-01 | L156: 11683
A157: CAMBODIA | B157: [Other] | C157: 1122 | D157: 2022-01-01 | E157: 2022-12-31 | F157: 110 | G157: 57 | H157: 167 | I157: 45.6 | J157: 2015-04-01 | L157: 11790
A158: CAMBODIA | B158: Phnom Penh | C158: 1122 | D158: 2022-01-01 | E158: 2022-12-31 | F158: 151 | G158: 85 | H158: 236 | I158: 68 | J158: 2014-05-01 | L158: 10253
A159: CAMBODIA | B159: Siem Reap | C159: 1122 | D159: 2022-04-01 | E159: 2022-09-30 | F159: 155 | G159: 79 | H159: 234 | I159: 63.2 | J159: 2013-12-01 | L159: 11117
A160: CAMBODIA | B160: Siem Reap | C160: 1122 | D160: 2022-10-01 | E160: 2022-03-31 | F160: 170 | G160: 81 | H160: 251 | I160: 64.8 | J160: 2013-12-01 | L160: 11117
A161: CAMBODIA | B161: Sihanoukville | C161: 1122 | D161: 2022-05-01 | E161: 2022-08-31 | F161: 145 | G161: 73 | H161: 218 | I161: 58.4 | J161: 2016-07-01 | L161: 13422
A162: CAMBODIA | B162: Sihanoukville | C162: 1122 | D162: 2022-09-01 | E162: 2022-04-30 | F162: 180 | G162: 76 | H162: 256 | I162: 60.8 | J162: 2016-07-01 | L162: 13422
A163: CAMEROON | B163: [Other] | C163: 1180 | D163: 2022-01-01 | E163: 2022-12-31 | F163: 113 | G163: 53 | H163: 166 | I163: 42.4 | J163: 2022-09-01 | K163: 2 | L163: 11825
A164: CAMEROON | B164: Douala | C164: 1180 | D164: 2022-01-01 | E164: 2022-12-31 | F164: 141 | G164: 112 | H164: 253 | I164: 89.6 | J164: 2022-09-01 | L164: 10380
A165: CAMEROON | B165: Limbe | C165: 1180 | D165: 2022-01-01 | E165: 2022-12-31 | F165: 140 | G165: 64 | H165: 204 | I165: 51.2 | J165: 2022-09-01 | L165: 15055
A166: CAMEROON | B166: Yaounde | C166: 1180 | D166: 2022-01-01 | E166: 2022-12-31 | F166: 157 | G166: 97 | H166: 254 | I166: 77.6 | J166: 2022-09-01 | L166: 10379
A167: CANADA | B167: [Other] | C167: 1079 | D167: 2022-01-01 | E167: 2022-12-31 | F167: 126 | G167: 109 | H167: 235 | I167: 87.2 | J167: 2022-08-01 | K167: 74 | L167: 11763
A168: CANADA | B168: Banff | C168: 1079 | D168: 2022-01-01 | E168: 2022-12-31 | F168: 290 | G168: 85 | H168: 375 | I168: 68 | J168: 2022-08-01 | K168: 74 | L168: 11118
A169: CANADA | B169: Calgary | C169: 1079 | D169: 2022-01-01 | E169: 2022-12-31 | F169: 244 | G169: 134 | H169: 378 | I169: 107.2 | J169: 2022-08-01 | K169: 74 | L169: 10118
A170: CANADA | B170: Dartmouth | C170: 1079 | D170: 2022-01-01 | E170: 2022-12-31 | F170: 185 | G170: 138 | H170: 323 | I170: 110.4 | J170: 2022-08-01 | K170: 74 | L170: 10827
A171: CANADA | B171: Edmonton | C171: 1079 | D171: 2022-01-01 | E171: 2022-12-31 | F171: 171 | G171: 133 | H171: 304 | I171: 106.4 | J171: 2022-08-01 | K171: 74 | L171: 10492
A172: CANADA | B172: Fort McMurray, Alberta | C172: 1079 | D172: 2022-01-01 | E172: 2022-12-31 | F172: 210 | G172: 92 | H172: 302 | I172: 73.6 | J172: 2008-01-01 | K172: 74 | L172: 13823
A173: CANADA | B173: Fredericton | C173: 1079 | D173: 2022-01-01 | E173: 2022-12-31 | F173: 177 | G173: 120 | H173: 297 | I173: 96 | J173: 2022-08-01 | K173: 74 | L173: 12195
A174: CANADA | B174: Gander, Newfoundland | C174: 1079 | D174: 2022-01-01 | E174: 2022-12-31 | F174: 160 | G174: 113 | H174: 273 | I174: 90.4 | J174: 2022-08-01 | K174: 74 | L174: 12294
A175: CANADA | B175: Goose Bay | C175: 1079 | D175: 2022-01-01 | E175: 2022-12-31 | F175: 164 | G175: 112 | H175: 276 | I175: 89.6 | J175: 2022-08-01 | K175: 74 | L175: 91127
A176: CANADA | B176: Halifax | C176: 1079 | D176: 2022-01-01 | E176: 2022-12-31 | F176: 185 | G176: 138 | H176: 323 | I176: 110.4 | J176: 2022-08-01 | K176: 74 | L176: 10119
A177: CANADA | B177: Kelowna | C177: 1079 | D177: 2022-01-01 | E177: 2022-12-31 | F177: 189 | G177: 130 | H177: 319 | I177: 104 | J177: 2022-08-01 | K177: 74 | L177: 91128
A178: CANADA | B178: London, Ontario | C178: 1079 | D178: 2022-01-01 | E178: 2022-12-31 | F178: 115 | G178: 94 | H178: 209 | I178: 75.2 | J178: 2010-08-01 | K178: 74 | L178: 10829
A179: CANADA | B179: Moncton | C179: 1079 | D179: 2022-01-01 | E179: 2022-12-31 | F179: 150 | G179: 114 | H179: 264 | I179: 91.2 | J179: 2022-08-01 | K179: 74 | L179: 12194
A180: CANADA | B180: Montreal | C180: 1079 | D180: 2022-01-01 | E180: 2022-12-31 | F180: 179 | G180: 112 | H180: 291 | I180: 89.6 | J180: 2022-08-01 | K180: 74,4 | L180: 10120
A181: CANADA | B181: Nanoose Bay | C181: 1079 | D181: 2022-01-01 | E181: 2022-12-31 | F181: 104 | G181: 96 | H181: 200 | I181: 76.8 | J181: 2022-08-01 | K181: 74 | L181: 13883
A182: CANADA | B182: Niagara Falls, Ontario | C182: 1079 | D182: 2022-01-01 | E182: 2022-12-31 | F182: 174 | G182: 132 | H182: 306 | I182: 105.6 | J182: 2022-08-01 | K182: 74 | L182: 91167
A183: CANADA | B183: Ottawa | C183: 1079 | D183: 2022-01-01 | E183: 2022-12-31 | F183: 207 | G183: 113 | H183: 320 | I183: 90.4 | J183: 2022-08-01 | K183: 74 | L183: 10117
A184: CANADA | B184: Prince Edward Island | C184: 1079 | D184: 2022-01-01 | E184: 2022-12-31 | F184: 194 | G184: 120 | H184: 314 | I184: 96 | J184: 2022-08-01 | K184: 74 | L184: 11121
A185: CANADA | B185: Quebec | C185: 1079 | D185: 2022-01-01 | E185: 2022-12-31 | F185: 231 | G185: 130 | H185: 361 | I185: 104 | J185: 2022-08-01 | K185: 74 | L185: 10121
A186: CANADA | B186: Regina, Saskatchewan | C186: 1079 | D186: 2022-01-01 | E186: 2022-12-31 | F186: 192 | G186: 91 | H186: 283 | I186: 72.8 | J186: 2008-01-01 | K186: 74 | L186: 13822
A187: CANADA | B187: Richmond | C187: 1079 | D187: 2022-01-01 | E187: 2022-12-31 | F187: 211 | G187: 124 | H187: 335 | I187: 99.2 | J187: 2022-08-01 | K187: 74 | L187: 11122
A188: CANADA | B188: Saskatoon, Saskatchewan | C188: 1079 | D188: 2022-01-01 | E188: 2022-12-31 | F188: 188 | G188: 90 | H188: 278 | I188: 72 | J188: 2008-01-01 | K188: 74 | L188: 12734
A189: CANADA | B189: Sidney | C189: 1079 | D189: 2022-01-01 | E189: 2022-12-31 | F189: 143 | G189: 103 | H189: 246 | I189: 82.4 | J189: 2022-08-01 | K189: 74 | L189: 11124
A190: CANADA | B190: St. John's, Newfoundland | C190: 1079 | D190: 2022-01-01 | E190: 2022-12-31 | F190: 179 | G190: 138 | H190: 317 | I190: 110.4 | J190: 2022-08-01 | K190: 74 | L190: 11123
A191: CANADA | B191: Toronto | C191: 1079 | D191: 2022-01-01 | E191: 2022-12-31 | F191: 274 | G191: 124 | H191: 398 | I191: 99.2 | J191: 2022-08-01 | K191: 74,5 | L191: 10122
A192: CANADA | B192: Vancouver | C192: 1079 | D192: 2022-03-16 | E192: 2022-11-30 | F192: 383 | G192: 160 | H192: 543 | I192: 128 | J192: 2022-08-01 | K192: 74 | L192: 10123
A193: CANADA | B193: Vancouver | C193: 1079 | D193: 2022-12-01 | E193: 2022-03-15 | F193: 194 | G193: 142 | H193: 336 | I193: 113.6 | J193: 2022-08-01 | K193: 74 | L193: 10123
A194: CANADA | B194: Victoria | C194: 1079 | D194: 2022-05-15 | E194: 2022-10-01 | F194: 222 | G194: 128 | H194: 350 | I194: 102.4 | J194: 2022-08-01 | K194: 74 | L194: 10832
A195: CANADA | B195: Victoria | C195: 1079 | D195: 2022-10-02 | E195: 2022-05-14 | F195: 163 | G195: 122 | H195: 285 | I195: 97.6 | J195: 2022-08-01 | K195: 74 | L195: 10832
A196: CANADA | B196: Whistler, BC | C196: 1079 | D196: 2022-01-01 | E196: 2022-12-31 | F196: 235 | G196: 122 | H196: 357 | I196: 97.6 | J196: 2022-08-01 | K196: 74 | L196: 91140
A197: CANADA | B197: Whitehorse, Yukon | C197: 1079 | D197: 2022-01-01 | E197: 2022-12-31 | F197: 219 | G197: 99 | H197: 318 | I197: 79.2 | J197: 2022-08-01 | K197: 74 | L197: 91129
A198: CANADA | B198: Winnipeg | C198: 1079 | D198: 2022-01-01 | E198: 2022-12-31 | F198: 188 | G198: 143 | H198: 331 | I198: 114.4 | J198: 2022-08-01 | K198: 74 | L198: 10124
A199: CANADA | B199: Yellowknife | C199: 1079 | D199: 2022-01-01 | E199: 2022-12-31 | F199: 135 | G199: 99 | H199: 234 | I199: 79.2 | J199: 2022-08-01 | K199: 74 | L199: 91130
A200: CAYMAN ISLANDS | B200: Cayman Islands | C200: 1464 | D200: 2022-07-17 | E200: 2022-12-14 | F200: 307 | G200: 119 | H200: 426 | I200: 95.2 | J200: 2015-12-01 | L200: 19016
A201: CAYMAN ISLANDS | B201: Cayman Islands | C201: 1464 | D201: 2022-12-15 | E201: 2022-07-16 | F201: 588 | G201: 147 | H201: 735 | I201: 117.6 | J201: 2015-12-01 | L201: 19016
A202: CENTRAL AFRICAN REPUBLIC | B202: [Other] | C202: 1182 | D202: 2022-01-01 | E202: 2022-12-31 | F202: 215 | G202: 83 | H202: 298 | I202: =G202*0.8 -> 66.4 | J202: 2022-09-01 | K202: 2 | L202: 11827
A203: CENTRAL AFRICAN REPUBLIC | B203: Bangui | C203: 1182 | D203: 2022-01-01 | E203: 2022-12-31 | F203: 215 | G203: 83 | H203: 298 | I203: 66.4 | J203: 2022-09-01 | K203: 2 | L203: 10382
... 928 more rows
